bitfinex/quotes_ETHUSD_20250608
["timestamp","ask_amount","ask_price","bid_price","bid_amount"]
[1749407342911,17.071,2532.2,2532.1,26.20277402]
[1749407343117,25.108,2532.2,2532.1,26.20277402]
[1749407344093,17.071,2532.2,2532.1,26.20277402]
[1749407344297,25.107,2532.2,2532.1,26.20277402]
[1749407345231,25.107,2532.2,2532.1,26.60036256]
[1749407346836,25.107,2532.2,2532.1,16.0]
[1749407347033,25.107,2532.2,2532.0,3.94930497]
[1749407348021,25.107,2532.2,2532.1,3.9492911]
[1749407350995,8.036,2532.2,2532.1,3.9492911]
[1749407352007,8.036,2532.2,2532.1,9.42267402]
[1749407365066,8.036,2532.2,2532.1,3.9492911]
[1749407374773,8.98358055,2532.2,2532.1,3.9492911]
[1749407374977,8.036,2532.2,2532.1,3.9492911]
[1749407379232,8.036,2532.2,2532.1,7.93019801]
[1749407381807,8.036,2532.2,2532.1,3.9492911]
[1749407382044,8.98376674,2532.2,2532.1,3.9492911]
[1749407382248,8.036,2532.2,2532.1,3.9492911]
[1749407382634,8.98377587,2532.2,2532.1,3.9492911]
[1749407383144,8.036,2532.2,2532.1,3.9492911]
[1749407383841,8.033,2532.2,2532.1,3.9492911]
[1749407384015,8.033,2532.2,2532.1,7.93019801]
[1749407385212,8.033,2532.2,2532.1,3.9492911]
[1749407385869,1.641,2532.2,2532.1,3.9492911]
[1749407386027,8.033,2532.2,2532.1,3.9492911]
[1749407387967,0.8265,2532.5,2532.0,16.7714]
[1749407388107,1.64,2532.2,2532.1,21.12185703]
[1749407388311,1.18047608,2532.7,2532.2,9.42264806]
[1749407388312,1.64,2532.3,2532.2,9.42264806]
[1749407388562,8.031,2532.3,2532.2,9.42264806]
[1749407389162,8.031,2532.3,2532.2,3.94907661]
[1749407400378,2.00417608,2532.8,2532.7,3.9483555]
[1749407400583,2.00417608,2532.8,2532.6,3.94850598]
[1749407400584,12.57073197,2532.8,2532.6,3.94850598]
[1749407400791,8.97594709,2532.7,2532.6,3.94837688]
[1749407400966,2.95578856,2532.7,2532.6,9.42194833]
[1749407401283,8.029,2532.7,2532.6,9.42194833]
[1749407401606,17.067,2532.9,2532.8,3.94819962]
[1749407401763,25.096,2532.9,2532.8,3.94819962]
[1749407404790,18.706,2532.9,2532.8,3.94819962]
[1749407404993,25.096,2532.9,2532.8,3.94819962]
[1749407408505,17.067,2532.9,2532.8,3.94819962]
[1749407408689,25.095,2532.9,2532.8,3.94819962]
[1749407409057,17.067,2532.9,2532.8,3.94819962]
[1749407409312,25.095,2532.9,2532.8,3.94819962]
[1749407411617,17.067,2532.9,2532.8,3.94819962]
[1749407411811,25.094,2532.9,2532.8,3.94819962]
[1749407412920,1.18132631,2533.4,2532.9,0.814]
[1749407413225,1.638,2533.0,2532.9,26.23561519]
[1749407413433,6.389,2533.0,2532.9,22.28757145]
[1749407414084,6.389,2533.0,2532.9,26.23551623]
[1749407416780,6.389,2533.0,2532.9,19.94794478]
[1749407419511,0.785,2533.3,2533.1,3.94765897]
[1749407419683,8.026,2533.2,2533.1,3.94765897]
[1749407421999,1.638,2533.2,2533.1,3.94773202]
[1749407422196,8.025,2533.2,2533.1,3.94773202]
[1749407425311,0.8048,2533.5,2533.3,3.94742036]
[1749407425622,8.96977588,2533.4,2533.3,3.94742036]
[1749407426058,0.94477588,2533.4,2533.3,3.94742036]
[1749407426349,8.96977588,2533.4,2533.3,3.94742036]
[1749407427549,8.96977588,2533.4,2533.1,9.4212401]
[1749407427550,8.96977588,2533.4,2533.2,3.9475046]
[1749407427738,8.025,2533.4,2533.2,3.9475046]
[1749407428239,0.94533987,2533.3,2533.2,3.9475046]
[1749407430259,8.96933987,2533.3,2533.2,3.9475046]
[1749407430639,0.94533987,2533.3,2533.2,3.9475046]
[1749407430845,8.96933987,2533.3,2533.2,3.9475046]
[1749407431859,9.33887713,2533.3,2533.2,3.9475046]
[1749407432021,8.96933987,2533.3,2533.2,3.9475046]
[1749407432221,9.33887644,2533.3,2533.2,3.9475046]
[1749407432447,0.94533987,2533.3,2533.2,3.9475046]
[1749407432640,9.338877,2533.3,2533.2,3.9475046]
[1749407432842,9.33888031,2533.3,2533.2,3.9475046]
[1749407433179,8.96933987,2533.3,2532.8,16.0]
[1749407433342,0.94533987,2533.2,2532.8,19.94809507]
[1749407433539,0.7842,2533.1,2532.9,3.94804374]
[1749407433741,6.386,2533.0,2532.9,19.94804374]
[1749407433980,3.73637703,2533.3,2533.0,3.94777111]
[1749407434160,7.33224637,2533.2,2533.0,3.94777111]
[1749407434359,6.386,2533.2,2533.0,3.94777111]
[1749407435790,0.7842,2533.1,2532.9,16.0]
[1749407436585,0.7842,2533.1,2532.9,19.94799808]
[1749407437084,0.7842,2533.1,2532.9,16.0]
[1749407437286,2.05966445,2533.1,2532.9,16.0]
[1749407441281,0.7842,2533.1,2533.0,3.94788787]
[1749407441480,1.73114688,2533.1,2533.0,3.94788787]
[1749407449777,0.94694688,2533.1,2533.0,3.94788787]
[1749407457731,0.94694688,2533.1,2533.0,24.71246569]
[1749407457928,6.385,2533.2,2533.1,3.94759975]
[1749407458229,1.637,2533.3,2533.2,3.94757618]
[1749407458424,8.96935721,2533.3,2533.2,3.94757618]
[1749407458994,9.33947086,2533.3,2533.2,3.94757618]
[1749407459329,9.33846983,2533.3,2533.2,7.926054]
[1749407459511,8.96835721,2533.3,2533.2,7.926054]
[1749407460590,9.86519293,2533.3,2532.9,19.94795915]
[1749407460799,0.94735721,2533.2,2532.9,19.94795915]
[1749407460992,8.91783572,2533.3,2532.9,19.94795915]
[1749407460993,0.94735721,2533.1,2532.9,19.94795915]
[1749407461320,8.021,2533.0,2532.9,19.94795915]
[1749407464555,2.00698374,2533.4,2533.1,3.94762888]
[1749407464763,8.96822921,2533.3,2533.2,3.94757618]
[1749407465546,9.33836624,2533.3,2533.2,3.94757618]
[1749407465904,8.96822921,2533.3,2533.2,3.94757618]
[1749407466636,9.33814857,2533.3,2533.2,3.94757618]
[1749407466939,8.96822921,2533.3,2533.2,3.94757618]
[1749407467302,9.33814339,2533.3,2533.2,3.94757618]
[1749407467622,8.96822921,2533.3,2533.1,3.94767294]
[1749407467943,0.94722921,2533.2,2533.1,3.94767294]
[1749407468840,0.94710323,2533.2,2533.1,3.94767294]
[1749407469002,8.96810323,2533.2,2533.1,3.94767294]
[1749407473060,9.33800566,2533.2,2533.1,3.94767294]
[1749407473259,8.96810323,2533.2,2533.1,3.94767294]
[1749407473464,9.33800479,2533.2,2533.1,3.94767294]
[1749407473695,8.96810323,2533.2,2533.1,3.94767294]
[1749407473827,9.338005,2533.2,2533.1,3.94767294]
[1749407474160,8.96810323,2533.2,2533.1,3.94767294]
[1749407474867,9.3380053,2533.2,2533.1,3.94767294]
[1749407475070,8.96810323,2533.2,2533.1,3.94767294]
[1749407475353,9.33800343,2533.2,2533.1,3.94767294]
[1749407475556,8.96810323,2533.2,2533.1,3.94767294]
[1749407476192,9.33800857,2533.2,2533.1,3.94767294]
[1749407476325,9.33800917,2533.2,2533.1,3.94767294]
[1749407476525,8.96810323,2533.2,2533.1,3.94767294]
[1749407477666,9.33804166,2533.2,2533.1,3.94767294]
[1749407478026,8.96810323,2533.2,2533.1,3.94767294]
[1749407479126,9.33804121,2533.2,2533.1,3.94767294]
[1749407479324,9.33804121,2533.2,2532.9,4.73409036]
[1749407479325,9.33804121,2533.2,2533.0,3.94786774]
[1749407479581,0.94715703,2533.1,2532.9,16.0]
[1749407479879,12.90238767,2533.2,2532.8,16.0]
[1749407480168,2.0824487,2533.1,2532.8,19.9481914]
[1749407480383,0.94718707,2533.0,2532.8,19.9481914]
[1749407480546,7.33118707,2532.9,2532.8,19.9481914]
[1749407480721,6.384,2532.9,2532.8,19.9481914]
[1749407481584,7.33091064,2532.9,2532.8,19.9481914]
[1749407482180,6.384,2532.9,2532.8,19.9481914]
[1749407485023,6.384,2532.9,2532.8,19.94819962]
[1749407485227,6.384,2532.9,2532.5,16.8016]
[1749407485382,6.384,2532.9,2532.8,3.94819962]
[1749407485577,6.384,2532.9,2532.8,19.94819962]
[1749407493794,8.02172724,2532.9,2532.3,8.69276195]
[1749407493994,1.72723982,2532.8,2532.5,3.94859282]
[1749407494294,0.94643982,2532.7,2532.4,3.94876693]
[1749407494527,8.019,2532.6,2532.4,3.94876693]
[1749407494694,8.019,2532.6,2532.5,3.94866732]
[1749407496002,8.019,2532.6,2532.4,19.94874432]
[1749407496409,8.019,2532.6,2532.5,3.94866732]
[1749407499908,8.019,2532.6,2532.4,19.94874802]
[1749407502138,8.019,2532.6,2532.4,16.0]
[1749407502338,8.019,2532.6,2532.4,3.948802]
[1749407502636,9.29380775,2532.6,2532.3,19.94897233]
[1749407502804,0.8121,2532.5,2532.2,19.94912414]
[1749407503408,0.8121,2532.5,2532.3,3.94883062]
[1749407503928,0.8121,2532.5,2532.2,3.94905823]
[1749407504133,1.82269078,2532.5,2532.1,19.94917402]
[1749407504314,1.82269078,2532.5,2532.2,3.94911408]
[1749407507018,1.82269078,2532.5,2532.2,3.94907103]
[1749407507213,1.82269078,2532.5,2532.2,9.42163422]
[1749407507409,1.82269078,2532.5,2532.3,3.94888618]
[1749407508307,6.384,2532.4,2532.3,3.94888618]
[1749407509260,1.82269078,2532.5,2532.3,3.94888618]
[1749407509408,8.02,2532.4,2532.3,3.94888618]
[1749407514648,8.02,2532.4,2532.2,9.42161879]
[1749407516521,8.02,2532.4,2532.3,3.94897918]
[1749407518549,8.02,2532.4,2532.2,9.42160107]
[1749407518775,8.02,2532.4,2532.3,3.94897918]
[1749407520223,8.019,2532.4,2532.3,3.94895495]
[1749407520968,8.019,2532.4,2532.2,9.42161278]
[1749407523373,8.019,2532.4,2532.1,3.94920305]
[1749407523554,9.29696456,2532.4,2532.0,25.42192668]
[1749407523858,9.29696456,2532.4,2532.0,25.42197539]
[1749407524033,8.019,2532.4,2532.2,3.94904609]
[1749407524265,8.019,2532.4,2532.3,3.94897918]
[1749407524466,8.9656368,2532.4,2532.3,3.94897918]
[1749407525039,8.9656368,2532.4,2532.1,3.94922466]
[1749407525269,9.08953632,2532.4,2532.1,3.94922466]
[1749407526376,1.73973625,2532.3,2531.9,3.94959982]
[1749407526579,4.74198237,2532.3,2531.8,19.949671]
[1749407526771,4.89608729,2532.2,2531.7,3.94991272]
[1749407526964,8.12283278,2532.1,2531.8,3.94974567]
[1749407527182,0.94683278,2532.0,2531.8,3.94974567]
[1749407527358,7.176,2532.1,2531.8,3.94974567]
[1749407527542,0.94662199,2532.0,2531.8,3.94974567]
[1749407527744,7.176,2532.1,2531.8,3.94974567]
[1749407527940,1.77803449,2532.2,2531.9,23.93175184]
[1749407527941,0.94667728,2532.0,2531.9,23.93175184]
[1749407528204,8.018,2532.3,2532.2,3.94913513]
[1749407528340,0.94652684,2532.3,2532.2,7.93128391]
[1749407528545,1.97640532,2532.8,2532.5,3.94859491]
[1749407528740,8.96549793,2532.7,2532.5,3.94859491]
[1749407528984,0.94649793,2532.6,2532.5,3.94859491]
[1749407529192,1.3165821,2532.6,2532.5,3.94859491]
[1749407529375,9.3355853,2532.6,2532.5,3.94859491]
[1749407529685,8.96556677,2532.6,2532.4,10.19552226]
[1749407529889,8.019,2532.6,2532.4,10.19552226]
[1749407530692,8.019,2532.6,2532.4,9.42072226]
[1749407530874,0.94665528,2532.5,2532.4,3.94882325]
[1749407531204,1.31675192,2532.5,2532.4,3.94882325]
[1749407531350,0.94665528,2532.5,2532.4,3.94882325]
[1749407531553,1.31675248,2532.5,2532.4,3.94882325]
[1749407531756,0.94665528,2532.5,2532.4,3.94882325]
[1749407531981,0.94665528,2532.5,2532.3,3.94892646]
[1749407532149,0.94681548,2532.4,2532.3,3.94892646]
[1749407533989,6.383,2532.4,2532.3,3.94892646]
[1749407534884,7.32988811,2532.4,2532.3,3.94892646]
[1749407535282,6.383,2532.4,2532.3,3.94892646]
[1749407537494,7.32990821,2532.4,2532.3,3.94892646]
[1749407537709,6.383,2532.4,2532.3,3.94892646]
[1749407537907,6.383,2532.4,2532.2,21.47196004]
[1749407538092,6.383,2532.4,2532.3,3.94897918]
[1749407538293,8.96489456,2532.4,2532.3,3.94897918]
[1749407538490,9.33501818,2532.4,2532.3,3.94897918]
[1749407538693,8.96489456,2532.4,2532.3,3.94897918]
[1749407539713,9.33498124,2532.4,2532.3,3.94897918]
[1749407540009,9.33498114,2532.4,2532.3,3.94897918]
[1749407540169,8.96489456,2532.4,2532.3,3.94897918]
[1749407541064,9.33498165,2532.4,2532.2,25.42102375]
[1749407541334,8.018,2532.4,2532.3,3.94897918]
[1749407541470,8.96490706,2532.4,2532.2,16.0]
[1749407541675,8.91449071,2532.4,2532.1,19.9492022]
[1749407542087,8.91449071,2532.4,2532.2,3.94905163]
[1749407546718,8.91449071,2532.4,2532.1,16.0]
[1749407546926,8.91449071,2532.4,2532.2,3.94913171]
[1749407547297,8.91449071,2532.4,2532.1,19.94922028]
[1749407547628,0.9469251,2532.3,2532.1,3.94922028]
[1749407547836,0.94696256,2532.2,2532.1,3.94922028]
[1749407548028,0.94696256,2532.2,2531.9,3.94955331]
[1749407548228,7.70016969,2532.1,2531.4,6.22696004]
[1749407548432,0.94701962,2532.0,2531.7,3.94980954]
[1749407548725,6.383,2532.1,2531.7,3.94991507]
[1749407548926,2.15894924,2532.0,2531.7,3.94991507]
[1749407549103,1.21206097,2532.0,2531.7,3.94991507]
[1749407549500,1.74880734,2531.9,2531.6,19.94995501]
[1749407549707,8.017,2531.8,2531.6,19.94995501]
[1749407551231,8.017,2531.8,2531.6,16.0]
[1749407552034,8.017,2531.8,2531.6,3.95007065]
[1749407552731,8.017,2531.8,2531.6,19.95007065]
[1749407553121,0.94579706,2531.7,2531.4,9.42226653]
[1749407553317,9.0201261,2531.8,2531.4,9.42226653]
[1749407553508,0.94539103,2531.7,2531.4,9.42226653]
[1749407553709,9.0201261,2531.8,2531.4,9.42226653]
[1749407553910,0.94539271,2531.7,2531.4,9.42226653]
[1749407554123,0.7946,2531.6,2531.3,3.95050323]
[1749407554297,6.383,2531.5,2531.4,3.95036982]
[1749407554839,6.383,2531.5,2531.3,3.95049535]
[1749407555598,6.383,2531.5,2531.2,25.42258296]
[1749407556201,6.383,2531.5,2531.3,3.95053873]
[1749407556537,6.383,2531.5,2531.4,5.47196004]
[1749407556735,6.383,2531.5,2531.4,9.42234322]
[1749407558844,6.383,2531.5,2531.4,5.47196004]
[1749407559352,6.383,2531.5,2531.4,9.42234322]
[1749407560622,5.883,2531.5,2531.4,9.42234322]
[1749407561237,5.883,2531.5,2531.4,5.47196004]
[1749407561564,5.883,2531.5,2531.4,9.42234322]
[1749407565265,5.883,2531.5,2531.4,5.47196004]
[1749407567668,5.883,2531.5,2531.4,9.42234322]
[1749407569034,5.883,2531.5,2531.4,5.47196004]
[1749407571258,5.883,2531.5,2531.4,9.42234322]
[1749407573400,5.883,2531.5,2531.4,5.47196004]
[1749407573699,5.883,2531.5,2531.4,9.42234322]
[1749407575560,7.518,2531.5,2531.2,19.95062922]
[1749407575765,7.518,2531.5,2531.2,25.42257015]
[1749407576003,7.518,2531.5,2531.3,3.95051941]
[1749407577916,7.518,2531.5,2531.4,3.95038318]
[1749407578103,8.4644406,2531.5,2531.4,3.95038318]
[1749407579034,8.4644406,2531.5,2531.3,3.95048087]
[1749407579339,0.94680137,2531.4,2531.3,3.95048087]
[1749407579503,0.94680137,2531.4,2531.2,21.47196004]
[1749407579704,7.518,2531.5,2531.2,21.47196004]
[1749407580007,0.94709345,2531.4,2531.2,25.42262575]
[1749407580207,7.518,2531.5,2531.2,25.42262575]
[1749407580408,0.94733332,2531.4,2531.2,25.42262575]
[1749407580641,7.518,2531.5,2531.3,3.95052236]
[1749407580848,0.94733053,2531.4,2531.3,3.95052236]
[1749407581903,1.3178172,2531.4,2531.3,3.95052236]
[1749407582641,0.94754413,2531.4,2531.3,3.95052236]
[1749407582805,1.31781818,2531.4,2531.3,3.95052236]
[1749407583143,0.94754413,2531.4,2531.3,3.95052236]
[1749407583743,1.31781656,2531.4,2531.3,3.95052236]
[1749407583945,1.31781725,2531.4,2531.3,3.95052236]
[1749407584443,1.31781743,2531.4,2531.3,3.95052236]
[1749407584645,0.94754413,2531.4,2531.3,3.95052236]
[1749407585150,0.94754413,2531.4,2531.2,25.4225712]
[1749407585308,0.94754413,2531.3,2531.2,25.4225712]
[1749407587257,0.94781972,2531.3,2531.2,25.4225712]
[1749407588842,0.94781972,2531.3,2531.2,19.95061116]
[1749407589148,0.94780164,2531.3,2531.2,19.95061116]
[1749407590058,7.33180164,2531.3,2531.2,19.95061116]
[1749407592368,7.33180164,2531.3,2531.2,16.0]
[1749407592772,7.33180164,2531.3,2531.2,19.95069532]
[1749407593764,7.33180164,2531.3,2531.2,16.0]
[1749407594094,7.33180164,2531.3,2531.2,19.95069532]
[1749407594663,7.33180164,2531.3,2531.2,16.0]
[1749407595565,7.33180164,2531.3,2531.2,19.95069532]
[1749407597695,7.33180164,2531.3,2531.2,16.0]
[1749407598377,7.33173966,2531.3,2531.2,16.0]
[1749407600299,7.33173966,2531.3,2531.2,19.95069532]
[1749407601647,0.94773966,2531.3,2531.2,19.95069532]
[1749407601852,8.96473966,2531.3,2531.2,19.95069532]
[1749407604247,8.96473966,2531.3,2531.2,16.0]
[1749407605129,8.96473966,2531.3,2531.2,19.95069532]
[1749407606656,8.96473966,2531.3,2531.2,16.0]
[1749407606857,8.96473966,2531.3,2531.2,19.95069532]
[1749407612452,8.96473966,2531.3,2531.2,16.0]
[1749407612658,8.96473966,2531.3,2531.2,19.95069532]
[1749407613526,8.96473966,2531.3,2531.2,16.0]
[1749407615266,9.33513225,2531.3,2531.2,16.0]
[1749407615436,9.33513236,2531.3,2531.2,19.95069532]
[1749407615639,8.96473966,2531.3,2531.2,19.95069532]
[1749407617146,9.33513054,2531.3,2531.2,19.95069532]
[1749407617355,8.96473966,2531.3,2531.2,19.95069532]
[1749407617876,8.96373966,2531.3,2531.2,19.95069532]
[1749407618540,9.33412716,2531.3,2531.2,19.95069532]
[1749407618875,9.3341285,2531.3,2531.2,19.95069532]
[1749407619246,8.96373966,2531.3,2531.2,19.95069532]
[1749407619660,1.31813949,2531.3,2531.2,19.95069532]
[1749407619975,8.96273966,2531.3,2531.2,19.95069532]
[1749407620500,9.33314115,2531.3,2531.2,19.95069532]
[1749407620990,8.96273966,2531.3,2531.2,19.95069532]
[1749407621352,1.31813409,2531.3,2531.2,19.95069532]
[1749407621553,8.96273966,2531.3,2531.2,19.95069532]
[1749407621852,1.633,2531.6,2531.5,3.95022713]
[1749407622053,17.073,2531.7,2531.6,3.9500711]
[1749407622377,1.633,2532.1,2532.0,19.94944707]
[1749407622577,12.015,2532.1,2532.0,24.73278587]
[1749407622967,8.015,2532.1,2532.0,24.73278587]
[1749407625392,8.015,2532.1,2532.0,20.74854707]
[1749407625595,8.015,2532.1,2532.0,16.7991]
[1749407626096,8.015,2532.1,2532.0,20.74854707]
[1749407627596,8.015,2532.1,2532.0,19.94944707]
[1749407630394,8.015,2532.1,2532.0,16.0]
[1749407630694,8.015,2532.1,2532.0,19.94944707]
[1749407638531,0.55,2531.8,2531.2,0.7922]
[1749407638684,0.8024,2531.9,2531.2,0.7922]
[1749407638685,0.8024,2531.9,2531.7,3.94977362]
[1749407639020,8.022,2531.8,2531.6,3.94996539]
[1749407639189,8.023,2531.7,2531.6,3.94996539]
[1749407640214,0.55,2532.0,2531.6,3.9500711]
[1749407640514,8.022,2531.9,2531.6,3.9500711]
[1749407641393,8.022,2531.8,2531.7,3.94990742]
[1749407641816,8.022,2531.8,2531.6,3.94998781]
[1749407642012,0.8024,2532.1,2531.7,3.94991507]
[1749407642225,8.026,2532.0,2531.7,3.94991507]
[1749407642732,0.55,2532.3,2531.8,3.94975906]
[1749407642733,8.026,2531.9,2531.8,3.94975906]
[1749407642939,8.026,2531.9,2531.7,9.42402059]
[1749407643143,8.026,2531.9,2531.7,5.47418537]
[1749407643305,8.026,2531.9,2531.8,3.94975906]
[1749407644135,8.026,2531.9,2531.7,9.42401657]
[1749407644888,8.026,2531.9,2531.6,19.94999462]
[1749407646300,8.026,2531.9,2531.7,3.94990647]
[1749407646501,8.026,2531.9,2531.6,19.94999653]
[1749407647532,8.026,2531.9,2531.7,3.94991187]
[1749407647941,8.026,2531.9,2531.6,19.94998431]
[1749407648641,8.026,2531.9,2531.7,3.94990991]
[1749407649054,8.026,2531.9,2531.6,19.94999677]
[1749407653342,8.026,2531.9,2531.6,23.93244466]
[1749407657351,8.026,2531.9,2531.7,3.94991431]
[1749407657645,8.022,2531.8,2531.7,3.94991431]
[1749407659334,8.022,2531.8,2531.6,23.93242923]
[1749407661160,8.022,2531.8,2531.7,3.94991507]
[1749407667432,8.96976692,2531.8,2531.7,3.94991507]
[1749407667633,8.022,2531.8,2531.7,3.94991507]
[1749407667833,8.96976319,2531.8,2531.7,3.94991507]
[1749407668050,9.33999971,2531.8,2531.7,3.94991507]
[1749407668244,8.96976319,2531.8,2531.7,3.94991507]
[1749407668858,8.022,2531.8,2531.7,3.94991507]
[1749407669470,8.96987176,2531.8,2531.7,3.94991507]
[1749407670231,0.94787176,2531.8,2531.7,3.94991507]
[1749407670443,8.017,2531.8,2531.7,3.94991507]
[1749407672452,1.99760892,2532.2,2531.9,3.94958716]
[1749407672658,0.9478496,2532.1,2531.9,3.94958716]
[1749407672882,9.33015561,2532.0,2531.9,3.94958716]
[1749407673598,9.33009486,2532.0,2531.8,7.93214778]
[1749407673748,0.9478496,2531.9,2531.8,7.93214778]
[1749407674153,8.9598496,2531.9,2531.8,7.93214778]
[1749407674348,0.9478496,2531.9,2531.8,7.93214778]
[1749407674554,8.9598496,2531.9,2531.8,7.93214778]
[1749407684328,8.9598496,2531.9,2531.7,3.94991507]
[1749407684329,8.9598496,2531.9,2531.7,3.94990384]
[1749407684472,8.8254,2531.9,2531.7,3.94990384]
[1749407686410,8.8254,2531.9,2531.5,3.95013414]
[1749407686582,0.94772719,2531.8,2531.6,16.0]
[1749407686795,8.8254,2531.9,2531.6,19.95000988]
[1749407687015,0.94775873,2531.8,2531.6,19.95000988]
[1749407687177,8.8254,2531.9,2531.6,19.95000988]
[1749407687380,0.94775518,2531.8,2531.6,19.95000988]
[1749407687581,8.8254,2531.9,2531.6,19.95000988]
[1749407687782,0.94776686,2531.8,2531.6,19.95000988]
[1749407687998,8.8254,2531.9,2531.6,19.95000988]
[1749407688198,0.9477669,2531.8,2531.6,16.0]
[1749407688413,0.94778492,2531.7,2531.6,16.0]
[1749407688920,0.94775765,2531.7,2531.6,16.0]
[1749407689720,0.94775765,2531.7,2531.6,19.9500711]
[1749407692594,1.632,2532.0,2531.9,3.94960306]
[1749407692794,8.96442272,2532.0,2531.9,3.94960306]
[1749407692994,8.96442272,2532.0,2531.8,7.93216955]
[1749407693200,0.94742272,2531.9,2531.8,3.94972166]
[1749407693402,0.94742272,2531.9,2531.6,19.94997466]
[1749407693600,1.71202272,2531.8,2531.6,16.0]
[1749407693811,7.33542272,2531.7,2531.6,19.9500711]
[1749407695290,7.33542272,2531.7,2531.6,16.0]
[1749407695525,7.33542272,2531.7,2531.6,19.9500711]
[1749407698661,8.14542499,2531.7,2531.1,0.7652]
[1749407698963,1.31746978,2531.6,2531.4,3.95033513]
[1749407699119,1.71202272,2531.5,2531.3,3.95046499]
[1749407699323,8.96642272,2531.4,2531.3,3.95046499]
[1749407700753,8.019,2531.4,2531.3,3.95046499]
[1749407701823,0.7646,2531.5,2531.4,3.95038318]
[1749407702052,9.72931324,2531.5,2531.4,3.95038318]
[1749407702951,10.78324479,2531.5,2531.2,3.98244789]
[1749407703169,0.94657618,2531.4,2531.0,3.9510075]
[1749407703462,8.7826,2531.5,2531.2,3.9506797]
[1749407703958,0.94638753,2531.4,2531.2,3.9506797]
[1749407704112,8.7826,2531.5,2531.2,3.9506797]
[1749407704306,0.94639497,2531.4,2531.2,3.9506797]
[1749407704507,10.25532999,2531.5,2531.2,3.9506797]
[1749407704809,0.94620903,2531.4,2531.2,3.9506797]
[1749407705007,10.25532999,2531.5,2531.2,3.9506797]
[1749407705216,0.94621065,2531.4,2531.2,3.9506797]
[1749407705519,10.25532999,2531.5,2531.2,3.9506797]
[1749407705720,0.94605988,2531.4,2531.2,3.9506797]
[1749407705945,10.25532999,2531.5,2531.2,3.9506797]
[1749407706144,0.94605953,2531.4,2531.2,3.9506797]
[1749407706343,10.25532999,2531.5,2531.2,3.9506797]
[1749407706552,0.94593856,2531.4,2531.2,3.9506797]
[1749407706737,10.25532999,2531.5,2531.2,3.9506797]
[1749407706910,0.94593779,2531.4,2531.2,3.9506797]
[1749407707107,8.7826,2531.5,2531.2,3.9506797]
[1749407707351,0.94592802,2531.4,2531.2,3.9506797]
[1749407707547,8.7826,2531.5,2531.2,3.9506797]
[1749407708266,10.13686029,2531.5,2531.2,3.9506797]
[1749407708558,0.94585804,2531.4,2531.2,3.9506797]
[1749407708724,10.13686029,2531.5,2531.2,3.9506797]
[1749407711561,0.94573723,2531.4,2531.1,19.95076239]
[1749407711866,0.55,2531.4,2531.1,3.95082447]
[1749407712224,2.01371935,2531.4,2531.1,3.95082447]
[1749407713958,2.01371935,2531.4,2531.2,3.95068905]
[1749407714133,8.018,2531.3,2531.2,3.95068905]
[1749407716827,8.018,2531.3,2531.0,4.73270622]
[1749407717366,8.018,2531.3,2531.1,3.9508514]
[1749407719746,8.018,2531.3,2531.2,3.95069532]
[1749407720768,8.96405231,2531.3,2531.2,3.95069532]
[1749407720971,8.018,2531.3,2531.2,3.95069532]
[1749407721469,8.96413171,2531.3,2531.2,3.95069532]
[1749407722000,8.018,2531.3,2531.2,3.95069532]
[1749407722471,8.96413044,2531.3,2531.2,3.95069532]
[1749407723152,8.96413044,2531.3,2531.0,16.7817]
[1749407723336,8.8147,2531.3,2531.0,19.95098606]
[1749407724140,8.8147,2531.3,2531.1,3.95084269]
[1749407724341,8.8147,2531.3,2531.2,3.95069532]
[1749407724572,9.76117653,2531.3,2531.0,19.95091954]
[1749407724751,8.8147,2531.3,2531.1,3.95077604]
[1749407725375,8.018,2531.3,2531.1,3.95077604]
[1749407727470,0.94720115,2531.2,2531.1,3.95077604]
[1749407727657,8.018,2531.3,2531.1,3.95077604]
[1749407728146,0.94721717,2531.2,2531.1,3.95077604]
[1749407728341,0.8162,2531.1,2530.9,3.95115862]
[1749407728584,0.8162,2530.4,2528.5,0.827]
[1749407728897,1.18539792,2529.5,2528.9,3.99179707]
[1749407729077,0.8162,2529.6,2528.5,0.827]
[1749407729078,8.23021662,2529.4,2529.1,3.99179707]
[1749407729241,2.99339792,2529.7,2529.3,3.99179707]
[1749407729569,6.711,2529.6,2529.3,3.99179707]
[1749407730253,0.3703638,2529.5,2529.3,3.99179707]
[1749407730455,6.711,2529.6,2529.3,3.99179707]
[1749407730777,6.711,2529.6,2529.2,0.827]
[1749407733301,6.711,2529.6,2529.2,4.78080851]
[1749407733501,6.711,2529.6,2529.2,0.827]
[1749407734099,6.711,2529.6,2529.2,4.78070343]
[1749407734606,0.94377244,2530.2,2529.5,16.0]
[1749407734807,2.624,2530.7,2530.3,3.95195202]
[1749407734981,2.28398996,2530.7,2530.2,4.71635673]
[1749407735176,6.703,2530.6,2530.4,3.95193476]
[1749407735616,6.703,2530.6,2530.2,4.71630025]
[1749407735774,2.28398996,2530.7,2530.2,4.71630025]
[1749407735972,6.701,2530.6,2530.2,4.71630025]
[1749407738497,6.701,2530.6,2530.1,19.95229524]
[1749407738692,6.701,2530.6,2530.1,20.84216424]
[1749407739114,6.701,2530.6,2530.2,3.95224548]
[1749407739278,6.701,2530.6,2530.3,3.95204394]
[1749407739472,4.22251147,2531.0,2530.4,3.95189552]
[1749407739673,1.18539792,2531.6,2531.0,16.0]
[1749407739867,0.7892,2531.8,2531.3,5.48553743]
[1749407740081,6.695,2531.7,2531.2,3.95055495]
[1749407740409,6.695,2531.7,2531.4,3.95037099]
[1749407740708,6.695,2531.7,2531.2,3.95064919]
[1749407740709,1.14340469,2531.6,2531.3,3.95047101]
[1749407741115,6.692,2531.6,2531.3,3.95047101]
[1749407741618,6.69,2531.6,2531.3,3.95047101]
[1749407742174,4.73896393,2531.8,2531.3,3.95047101]
[1749407742369,6.688,2531.7,2531.3,3.95047101]
[1749407743511,6.688,2531.7,2531.2,3.95056771]
[1749407744100,6.688,2531.7,2531.3,3.95050945]
[1749407744874,6.688,2531.7,2531.2,3.95061609]
[1749407747516,6.688,2531.7,2531.3,3.95052402]
[1749407748024,6.688,2531.7,2531.2,3.95062231]
[1749407750729,6.688,2531.7,2531.3,3.95042543]
[1749407751819,10.63793426,2531.7,2531.2,3.95062041]
[1749407752007,10.63793426,2531.7,2531.2,3.95058409]
[1749407753535,6.688,2531.7,2531.3,3.95052905]